[Event "45th FIDE Olympiad 2024"]
[Site "Budapest"]
[Date "2024.09.19"]
[Round "8.200"]
[White "Mudasir, Iqbal"]
[Black "Nait, Elasri Brahim"]
[Result "0-1"]
[WhiteElo "2055"]
[BlackElo "1994"]
[PlyCount "90"]
[EventDate "2024.09.05"]
[EventType "team-tourn"]
[EventCountry "HUN"]
[WhiteTeam "Pakistan"]
[BlackTeam "Morocco"]
[WhiteTeamCountry "PAK"]
[BlackTeamCountry "MAR"]
[TimeControl "40/5400+30:1800+30"]

1. e4 c5 2. Nf3 d6 3. d4 cxd4 4. Nxd4 Nf6 5. Nc3 a6 6. Bg5 e6 7. f4 Nbd7 8. Qf3 Qc7 9. O-O-O b5 10. Bd3 Bb7 11. Rhe1 Be7 12. a3 h6 13. Bxf6 Bxf6 14. Bxb5 axb5 15. Ndxb5 Qb8 16. Nxd6+ Kf8 17. Nxb7 Qxb7 18. e5 Qxf3 19. gxf3 Bh4 20. Re4 Ke7 21. f5 Bf2 22. fxe6 fxe6 23. f4 Rhf8 24. Rd2 Bb6 25. Rg2 Rf7 26. Nb5 Raf8 27. Nd6 Rxf4 28. Rxg7+ Kd8 29. Rxf4 Rxf4 30. Nf7+ Kc8 31. Nd6+ Kc7 32. Re7 Kc6 33. Rxe6 Kd5 34. Re8 Nxe5 35. Nb5 Rf1+ 36. Kd2 Nc4+ 37. Kc3 Rf3+ 38. Kb4 Bc5+ 39. Ka4 Nxb2+ 40. Ka5 Nc4+ 41. Ka6 Rf6+ 42. Kb7 Rb6+ 43. Kc7 Rxb5 44. Re2 Bd6+ 45. Kd7 Rb8 {0-} 0-1

[Event "45th FIDE Olympiad 2024"]
[Site "Budapest"]
[Date "2024.09.19"]
[Round "8.201"]
[White "Asabri, Hussien"]
[Black "Araujo Sanchez, Josue"]
[Result "1-0"]
[WhiteElo "2196"]
[BlackElo "2296"]
[PlyCount "131"]
[EventDate "2024.09.05"]
[EventType "team-tourn"]
[EventCountry "HUN"]
[WhiteTeam "Libya"]
[BlackTeam "Dominican Republic"]
[WhiteTeamCountry "LBY"]
[BlackTeamCountry "DOM"]
[TimeControl "40/5400+30:1800+30"]

1. d4 Nf6 2. Nf3 d6 3. g3 b5 4. Bg2 Bb7 5. O-O Nbd7 6. a4 b4 7. a5 Rb8 8. c4 e6 9. Qa4 Be7 10. Bd2 Ba6 11. Rc1 O-O 12. Bxb4 Ne4 13. Ba3 c5 14. Qc2 f5 15. Nbd2 Ndf6 16. e3 Bb7 17. Nxe4 Bxe4 18. Qd2 Qc8 19. Qe2 Qb7 20. Rd1 Rfc8 21. dxc5 dxc5 22. Rd2 Bd8 23. Rd6 Qe7 24. Rad1 Bxa5 25. Ne5 Bxg2 26. Kxg2 Bc7 27. Nc6 Qe8 28. Nxb8 Bxd6 29. Rxd6 Rxb8 30. Qd3 Qc8 31. f3 Kf7 32. Qc3 Ne8 33. Rd2 Qc7 34. Qd3 Ke7 35. e4 Nd6 36. Qc3 fxe4 37. Qxg7+ Nf7 38. fxe4 Qc6 39. Rf2 Rf8 40. Qf6+ Ke8 41. Rf4 h6 42. h4 Qd6 43. Qg6 Qd2+ 44. Kh3 Qd6 45. b3 Ke7 46. Qf6+ Kd7 47. Qg7 Ke8 48. Qg6 Ke7 49. Qh5 e5 50. Rf5 a5 51. Qf3 Ke8 52. Qf2 Qd1 53. Kh2 Qd7 54. Qxc5 Rg8 55. Qxa5 Qb7 56. Rf6 Qd7 57. Qd5 Qxd5 58. exd5 Rg4 59. c5 Rd4 60. d6 Nd8 61. Rxh6 Rd3 62. Rh7 Nc6 63. Bc1 e4 64. Rc7 Nd4 65. d7+ Kd8 66. Bg5+ 1-0

[Event "45th FIDE Olympiad 2024"]
[Site "Budapest"]
[Date "2024.09.19"]
[Round "8.202"]
[White "Camacho Campusano, David Daniel"]
[Black "Naser Eldean, Ahmed"]
[Result "1-0"]
[WhiteElo "2219"]
[BlackElo "1981"]
[PlyCount "127"]
[EventDate "2024.09.05"]
[EventType "team-tourn"]
[EventCountry "HUN"]
[WhiteTeam "Dominican Republic"]
[BlackTeam "Libya"]
[WhiteTeamCountry "DOM"]
[BlackTeamCountry "LBY"]
[TimeControl "40/5400+30:1800+30"]

1. e4 e6 2. Qe2 e5 3. Nf3 Nc6 4. g3 Nf6 5. Bg2 Bc5 6. c3 Bb6 7. b4 d6 8. a4 a5 9. b5 Ne7 10. O-O Ng6 11. Na3 O-O 12. Nc4 Bc5 13. d4 exd4 14. cxd4 Bb4 15. e5 Nd5 16. Bg5 f6 17. exf6 Nxf6 18. Rac1 h6 19. Qc2 Ne7 20. Bxf6 Rxf6 21. Ne3 c6 22. bxc6 bxc6 23. Rfd1 Bd7 24. Nd2 Rf8 25. Ndc4 Nf5 26. Be4 Nxe3 27. Nxe3 d5 28. Bg2 Qf6 29. Qe2 Rae8 30. Rc2 Qg5 31. h4 Qg6 32. Qd3 Qd6 33. Rf1 Qe7 34. Rd1 Bd6 35. Rc3 Rb8 36. Rb3 Qf6 37. Rd2 Rxb3 38. Qxb3 Bb4 39. Re2 Qxd4 40. Qc2 Qc3 41. Qg6 Qf6 42. Qd3 d4 43. f4 Be6 44. Nc4 Bf5 45. Be4 c5 46. Kg2 Qc6 47. Kf2 Bxe4 48. Rxe4 Qxa4 49. Re6 Qd7 50. Qe4 Qf7 51. Qd5 Kh7 52. Nd6 Qd7 53. Qe5 Rf6 54. Qe4+ Kg8 55. Re8+ Qxe8 56. Qxe8+ Rf8 57. Qe6+ Kh7 58. h5 Rf6 59. Qd7 Rxd6 60. Qxd6 a4 61. Qd5 a3 62. Ke2 Bc3 63. Kd3 Kh8 64. g4 1-0

[Event "45th FIDE Olympiad 2024"]
[Site "Budapest"]
[Date "2024.09.19"]
[Round "8.203"]
[White "Abugenda, Nagi"]
[Black "Jimenez Jimenez, Leandro"]
[Result "1-0"]
[WhiteElo "1975"]
[BlackElo "2188"]
[PlyCount "147"]
[EventDate "2024.09.05"]
[EventType "team-tourn"]
[EventCountry "HUN"]
[WhiteTeam "Libya"]
[BlackTeam "Dominican Republic"]
[WhiteTeamCountry "LBY"]
[BlackTeamCountry "DOM"]
[TimeControl "40/5400+30:1800+30"]

1. e4 e5 2. Nf3 Nc6 3. Nc3 Nf6 4. Bb5 Bb4 5. O-O O-O 6. d3 d6 7. h3 Ne7 8. Ne2 c6 9. Ba4 Ng6 10. Bb3 d5 11. Ng3 Bd6 12. Re1 Re8 13. Bg5 Be6 14. d4 h6 15. Bxf6 Qxf6 16. Nh5 Qd8 17. exd5 cxd5 18. dxe5 Bc5 19. Qd2 Qb6 20. Re2 a5 21. c3 a4 22. Bxd5 Rad8 23. c4 Rd7 24. Rd1 Ne7 25. Nf4 Red8 26. Qc2 a3 27. bxa3 Nxd5 28. cxd5 Bxd5 29. Nxd5 Rxd5 30. Rxd5 Rxd5 31. a4 Qc6 32. a5 Bb4 33. Qxc6 bxc6 34. Rc2 c5 35. Kf1 Bxa5 36. Ke2 Kf8 37. Rc4 Ke7 38. Ke3 Ke6 39. Ra4 Bc7 40. Ra6+ Kd7 41. Ke4 Rd1 42. Ra4 Kc6 43. Rc4 Kb5 44. Rc2 Ba5 45. Ke3 Bb4 46. Nd2 Re1+ 47. Kd3 Rxe5 48. Nc4 Rd5+ 49. Ke3 Rd4 50. f3 Rxc4 51. a4+ Kxa4 52. Rxc4 Kb5 53. Kd3 Kc6 54. Rf4 f6 55. Kc4 Kd6 56. Re4 Ba3 57. Re8 Bb2 58. g4 Bd4 59. f4 Kd7 60. Re2 Kd6 61. f5 Be5 62. Ra2 Bd4 63. Ra7 Ke5 64. Rxg7 Be3 65. Re7+ Kf4 66. Rxe3 Kxe3 67. Kxc5 Kf4 68. Kd6 h5 69. Ke6 h4 70. Kxf6 Kg3 71. g5 Kxh3 72. g6 Kh2 73. g7 h3 74. g8=Q 1-0

[Event "45th FIDE Olympiad 2024"]
[Site "Budapest"]
[Date "2024.09.19"]
[Round "8.204"]
[White "Mendez Ramirez, Victor"]
[Black "Elshaafi, Ali"]
[Result "1-0"]
[WhiteElo "2191"]
[BlackElo "1984"]
[PlyCount "45"]
[EventDate "2024.09.05"]
[EventType "team-tourn"]
[EventCountry "HUN"]
[WhiteTeam "Dominican Republic"]
[BlackTeam "Libya"]
[WhiteTeamCountry "DOM"]
[BlackTeamCountry "LBY"]
[TimeControl "40/5400+30:1800+30"]

1. c4 e5 2. Nc3 Nf6 3. Nf3 d6 4. d4 exd4 5. Nxd4 Be7 6. e4 O-O 7. Be2 Nbd7 8. O-O Nc5 9. Qc2 Re8 10. f3 Nfd7 11. Be3 Bf6 12. Rad1 Ne6 13. Nb3 g6 14. f4 Nef8 15. Bf3 b6 16. e5 Rb8 17. Nd4 Nxe5 18. fxe5 Bxe5 19. Nc6 Qh4 20. g3 Qxc4 21. Bd5 Qg4 22. Bxf7+ Kg7 23. Bxe8 1-0

[Event "45th FIDE Olympiad 2024"]
[Site "Budapest"]
[Date "2024.09.19"]
[Round "8.205"]
[White "Johnson, Joshua"]
[Black "Kao, Jamison Edrich"]
[Result "1-0"]
[WhiteElo "2267"]
[BlackElo "2125"]
[PlyCount "103"]
[EventDate "2024.09.05"]
[EventType "team-tourn"]
[EventCountry "HUN"]
[WhiteTeam "Trinidad & Tobago"]
[BlackTeam "Hong Kong, China"]
[TimeControl "40/5400+30:1800+30"]

1. e4 c5 2. Nf3 Nc6 3. Nc3 g6 4. d4 cxd4 5. Nxd4 Bg7 6. Be3 Nf6 7. Bc4 O-O 8. Bb3 d5 9. exd5 Na5 10. Qd2 Nxb3 11. Nxb3 b6 12. O-O-O Bb7 13. f3 Qd7 14. d6 Qxd6 15. Qxd6 exd6 16. Rxd6 Rfd8 17. Rhd1 Rxd6 18. Rxd6 Kf8 19. Rd3 Re8 20. Bf4 Re1+ 21. Rd1 Rxd1+ 22. Kxd1 Nd5 23. Nxd5 Bxd5 24. c3 Ke7 25. Kc2 Bc4 26. Nd2 Be2 27. Bb8 Kd7 28. Bf4 h5 29. b3 Ke6 30. c4 Bd4 31. Bb8 a5 32. Bc7 Kd7 33. Bf4 Ke6 34. Ne4 Bf1 35. g3 a4 36. Kd2 f6 37. Be3 Bxe3+ 38. Kxe3 g5 39. Nd2 axb3 40. axb3 Bh3 41. Kd4 Bg2 42. Ke3 Ke5 43. Ne4 Ke6 44. Nc3 Ke5 45. Na4 b5 46. cxb5 Kd6 47. b6 Kc6 48. Nc5 Kxb6 49. Nd7+ Kb5 50. Nxf6 h4 51. g4 Kb4 52. Kf2 1-0

[Event "45th FIDE Olympiad 2024"]
[Site "Budapest"]
[Date "2024.09.19"]
[Round "8.206"]
[White "Chan, Pui Yin Brandon"]
[Black "Cabralis, Quinn"]
[Result "0-1"]
[WhiteElo "2016"]
[BlackElo "2169"]
[PlyCount "76"]
[EventDate "2024.09.05"]
[EventType "team-tourn"]
[EventCountry "HUN"]
[WhiteTeam "Hong Kong, China"]
[BlackTeam "Trinidad & Tobago"]
[TimeControl "40/5400+30:1800+30"]

1. d4 d5 2. c4 c6 3. cxd5 cxd5 4. Nc3 Nf6 5. Bf4 Nc6 6. e3 a6 7. Bd3 Bg4 8. f3 Bh5 9. Qb3 Na5 10. Qa4+ Nc6 11. Qb3 Ra7 12. g4 Bg6 13. Bxg6 hxg6 14. g5 Nh5 15. Nxd5 e6 16. Nc7+ Ke7 17. d5 Nxf4 18. dxc6 Ng2+ 19. Kf2 Qxc7 20. Kxg2 bxc6 21. Ne2 Rb7 22. Qc3 Rb5 23. f4 Qb7 24. b3 f6 25. Kf2 Kf7 26. Nd4 Rc5 27. Qd3 Rd5 28. Qe4 Qd7 29. Rag1 f5 30. Qc2 Rxd4 31. exd4 Qxd4+ 32. Ke2 Bc5 33. Rg3 Qf2+ 34. Kd1 Qxg3 35. Kc1 Qe3+ 36. Kb2 Rd8 37. Rd1 Rxd1 38. Qxd1 Qd4+ {0-} 0-1

[Event "45th FIDE Olympiad 2024"]
[Site "Budapest"]
[Date "2024.09.19"]
[Round "8.207"]
[White "Harper, Ryan"]
[Black "Chan, Wang Ip Boris"]
[Result "0-1"]
[WhiteElo "2124"]
[BlackElo "2017"]
[PlyCount "80"]
[EventDate "2024.09.05"]
[EventType "team-tourn"]
[EventCountry "HUN"]
[WhiteTeam "Trinidad & Tobago"]
[BlackTeam "Hong Kong, China"]
[TimeControl "40/5400+30:1800+30"]

1. e4 c5 2. Nf3 d6 3. d4 cxd4 4. Nxd4 Nf6 5. Nc3 a6 6. Be2 e5 7. Nb3 Be6 8. O-O Be7 9. Qd3 O-O 10. Bd2 Qc8 11. Rac1 Rd8 12. Nd5 Nxd5 13. exd5 Bf5 14. Qg3 Bf6 15. Na5 Nd7 16. b4 Re8 17. Kh1 b6 18. Nc4 Qc7 19. Ne3 Bg6 20. h4 h5 21. Nc4 a5 22. bxa5 bxa5 23. Bg5 Qc5 24. Be3 Qc7 25. a4 Nc5 26. Bxc5 Qxc5 27. Qe3 Qb4 28. g3 Rab8 29. Rb1 Qxa4 30. Nxd6 Rxb1 31. Rxb1 Rd8 32. Nc4 Rxd5 33. Rb8+ Kh7 34. Nb6 Qa1+ 35. Kh2 Rd8 36. Rb7 Qd4 37. Nd7 Rxd7 38. Qxd4 Rxd4 39. Bf3 Rd2 40. Kg2 e4 {0-} 0-1

[Event "45th FIDE Olympiad 2024"]
[Site "Budapest"]
[Date "2024.09.19"]
[Round "8.208"]
[White "Li, Yiheng"]
[Black "McIntosh, Isaiah"]
[Result "1/2-1/2"]
[WhiteElo "1893"]
[BlackElo "2249"]
[PlyCount "94"]
[EventDate "2024.09.05"]
[EventType "team-tourn"]
[EventCountry "HUN"]
[WhiteTeam "Hong Kong, China"]
[BlackTeam "Trinidad & Tobago"]
[TimeControl "40/5400+30:1800+30"]

1. e4 e5 2. Nf3 Nc6 3. Bc4 Bc5 4. c3 Nf6 5. d3 d6 6. O-O a5 7. Re1 h6 8. Nbd2 O-O 9. h3 Be6 10. Bb5 Nd7 11. Nf1 d5 12. exd5 Bxd5 13. Be3 Bd6 14. d4 exd4 15. Nxd4 Nxd4 16. Qxd4 c6 17. Be2 Re8 18. Qd2 Qf6 19. Ng3 Nc5 20. c4 Ne4 21. Nxe4 Bxe4 22. Bd4 Qg6 23. f3 Bb4 24. Bc3 Bf5 25. Bxb4 Rad8 26. Qf4 axb4 27. Kh2 Qf6 28. Bf1 Rxe1 29. Rxe1 Qd6 30. Qxd6 Rxd6 31. Re8+ Kh7 32. Re7 Rd1 33. Rxf7 Kg6 34. Rxb7 Rxf1 35. Rxb4 Rc1 36. b3 Ra1 37. Rb6 Bd7 38. Rb7 Be8 39. Re7 Bf7 40. Rc7 Be8 41. Re7 Bf7 42. Rc7 Rxa2 43. Rxc6+ Kh7 44. Rb6 Rb2 45. Rb5 Be8 46. Rb4 Bg6 47. c5 Rc2 1/2-1/2

[Event "45th FIDE Olympiad 2024"]
[Site "Budapest"]
[Date "2024.09.19"]
[Round "8.209"]
[White "El Jawich, Amro"]
[Black "Pg, Md Omar Ak Hafizon"]
[Result "1-0"]
[WhiteElo "2296"]
[BlackElo "2159"]
[PlyCount "103"]
[EventDate "2024.09.05"]
[EventType "team-tourn"]
[EventCountry "HUN"]
[WhiteTeam "Lebanon"]
[BlackTeam "Brunei Darussalam"]
[WhiteTeamCountry "LBN"]
[TimeControl "40/5400+30:1800+30"]

1. e4 c5 2. Nc3 Nc6 3. f4 a6 4. Nf3 b5 5. d3 e6 6. Be2 d5 7. O-O b4 8. Na4 Nf6 9. e5 Nd7 10. Be3 Be7 11. Qe1 Bb7 12. Qg3 g6 13. b3 d4 14. Bc1 Na7 15. Nd2 Nb5 16. Bf3 Qc7 17. Bxb7 Qxb7 18. Nc4 Nc3 19. Nxc3 bxc3 20. f5 Nb6 21. fxe6 fxe6 22. Bg5 Nxc4 23. bxc4 Rf8 24. Rxf8+ Kxf8 25. Bxe7+ Kxe7 26. Qg5+ Kf8 27. Qf6+ Kg8 28. Qxe6+ Qf7 29. Qd5 Qxd5 30. cxd5 Rd8 31. d6 Kf7 32. Kf2 Ke6 33. Re1 Rf8+ 34. Kg3 Rb8 35. Re2 a5 36. Kf4 Rf8+ 37. Ke4 g5 38. g3 Rf7 39. a4 g4 40. d7 Rxd7 41. Rf2 Ke7 42. Rf4 h5 43. Rf5 Rb7 44. Kd5 Rb2 45. Rf2 Rb4 46. e6 Rb2 47. Rf7+ Ke8 48. Rc7 Rxc2 49. Kd6 Kf8 50. Rxc5 Re2 51. Rc8+ Kg7 52. e7 1-0

[Event "45th FIDE Olympiad 2024"]
[Site "Budapest"]
[Date "2024.09.19"]
[Round "8.210"]
[White "Yee, Soon Wei"]
[Black "Arkadan, Adib"]
[Result "0-1"]
[WhiteElo "2219"]
[BlackElo "2181"]
[PlyCount "72"]
[EventDate "2024.09.05"]
[EventType "team-tourn"]
[EventCountry "HUN"]
[WhiteTeam "Brunei Darussalam"]
[BlackTeam "Lebanon"]
[BlackTeamCountry "LBN"]
[TimeControl "40/5400+30:1800+30"]

1. e4 d6 2. d4 Nf6 3. Nc3 e5 4. Nf3 Nbd7 5. Bc4 Be7 6. a4 O-O 7. h3 c6 8. Ba2 Qc7 9. O-O h6 10. Re1 Re8 11. Be3 Nf8 12. dxe5 dxe5 13. Nh4 Ne6 14. Nf5 Bc5 15. Bxe6 Bxe3 16. Bxc8 Bc5 17. Qf3 Raxc8 18. Nxh6+ Kh7 19. Nf5 g6 20. Rad1 Re6 21. Ne3 Kg7 22. Ne2 Rh8 23. Ng3 Kf8 24. Rd3 Rh4 25. Ng4 Nxg4 26. hxg4 Kg7 27. Qd1 Rf6 28. Rf3 Rf4 29. g5 Rxf3 30. gxf3 Qc8 31. Kf1 Qh3+ 32. Ke2 Bxf2 33. Qd6 Bxe1 34. Qxe5+ Kh7 35. Kxe1 Qg2 36. a5 Qxf3 {0-} 0-1

[Event "45th FIDE Olympiad 2024"]
[Site "Budapest"]
[Date "2024.09.19"]
[Round "8.211"]
[White "Assaad, Joe"]
[Black "Lim Teck Guan, Rodney"]
[Result "1-0"]
[WhiteElo "2150"]
[BlackElo "1931"]
[PlyCount "53"]
[EventDate "2024.09.05"]
[EventType "team-tourn"]
[EventCountry "HUN"]
[WhiteTeam "Lebanon"]
[BlackTeam "Brunei Darussalam"]
[WhiteTeamCountry "LBN"]
[TimeControl "40/5400+30:1800+30"]

1. e4 c6 2. d4 d5 3. e5 Bf5 4. Nd2 e6 5. Nb3 Nd7 6. Be3 Rc8 7. f4 a6 8. Nf3 c5 9. dxc5 Bxc5 10. Nfd4 Nh6 11. Be2 O-O 12. O-O f6 13. exf6 Qxf6 14. g4 Qg6 15. g5 Bxc2 16. Nxc2 Qxc2 17. Nxc5 Rxc5 18. gxh6 Qg6+ 19. Kh1 Qe4+ 20. Rf3 Rc7 21. Bd3 Qb4 22. a3 Qe7 23. hxg7 Rf7 24. Bxh7+ Kxh7 25. Rh3+ Kg8 26. Rh8+ Kxg7 27. Qh5 1-0

[Event "45th FIDE Olympiad 2024"]
[Site "Budapest"]
[Date "2024.09.19"]
[Round "8.212"]
[White "Pg. Shahridin, Ak. Abdul Wafie"]
[Black "Kassis, Antoine"]
[Result "0-1"]
[WhiteElo "1912"]
[BlackElo "2085"]
[PlyCount "60"]
[EventDate "2024.09.05"]
[EventType "team-tourn"]
[EventCountry "HUN"]
[WhiteTeam "Brunei Darussalam"]
[BlackTeam "Lebanon"]
[BlackTeamCountry "LBN"]
[TimeControl "40/5400+30:1800+30"]

1. e4 c5 2. Nf3 d6 3. Bb5+ Nc6 4. O-O Bd7 5. Re1 Nf6 6. c3 a6 7. Bf1 Bg4 8. d4 e5 9. d5 Ne7 10. a4 Ng6 11. Bg5 Be7 12. Bxf6 Bxf6 13. Nbd2 O-O 14. a5 Be7 15. h3 Bd7 16. Nc4 f5 17. Nb6 fxe4 18. Nxd7 Qxd7 19. Rxe4 Rf7 20. g3 Qf5 21. Re3 e4 22. g4 Qf6 23. Qc2 exf3 24. Bd3 Qh4 25. Bxg6 hxg6 26. Kh2 Bg5 27. Re4 Bf4+ 28. Rxf4 Rxf4 29. Rg1 Re8 30. Qd2 Re2 {0-} 0-1

[Event "45th FIDE Olympiad 2024"]
[Site "Budapest"]
[Date "2024.09.19"]
[Round "8.213"]
[White "Mfune, Petros"]
[Black "Ahn, Hongjin"]
[Result "0-1"]
[WhiteElo "1986"]
[BlackElo "2251"]
[PlyCount "70"]
[EventDate "2024.09.05"]
[EventType "team-tourn"]
[EventCountry "HUN"]
[WhiteTeam "Malawi"]
[BlackTeam "South Korea"]
[WhiteTeamCountry "MWI"]
[TimeControl "40/5400+30:1800+30"]

1. e4 c5 2. Nf3 Nc6 3. d4 cxd4 4. Nxd4 e5 5. Nb5 d6 6. c4 g6 7. N1c3 a6 8. Na3 Be6 9. Nd5 Bg7 10. Be3 Bxd5 11. cxd5 Nd4 12. Bxd4 exd4 13. Qa4+ b5 14. Qb4 Nf6 15. Bd3 O-O 16. O-O Re8 17. Rfe1 Rc8 18. g3 h5 19. h4 Ng4 20. Kg2 Bh6 21. Re2 Qf6 22. Rd1 Rc5 23. Nc2 Ne5 24. f4 Bxf4 25. Rf2 Qe7 26. Qxd4 Bh6 27. b4 Rc7 28. Re2 Rec8 29. Ne1 Bg7 30. Qb6 Qd7 31. Qxa6 Qg4 32. Rdd2 Bh6 33. Rf2 Bxd2 34. Rxd2 Nxd3 35. Rxd3 Qe2+ {0-} 0-1

[Event "45th FIDE Olympiad 2024"]
[Site "Budapest"]
[Date "2024.09.19"]
[Round "8.214"]
[White "Yun, Hungi"]
[Black "Mwale, Joseph"]
[Result "1-0"]
[WhiteElo "2124"]
[BlackElo "2063"]
[PlyCount "97"]
[EventDate "2024.09.05"]
[EventType "team-tourn"]
[EventCountry "HUN"]
[WhiteTeam "South Korea"]
[BlackTeam "Malawi"]
[BlackTeamCountry "MWI"]
[TimeControl "40/5400+30:1800+30"]

1. e4 e5 2. Nf3 Nc6 3. Bb5 a6 4. Ba4 Nf6 5. O-O b5 6. Bb3 Be7 7. Re1 O-O 8. a4 Na5 9. Nxe5 Nxb3 10. cxb3 Bb7 11. Qc2 d5 12. Nc6 Bxc6 13. Qxc6 Nxe4 14. Nc3 Nc5 15. Nxd5 Bd6 16. Re3 f5 17. d4 Ne4 18. g3 b4 19. Nxb4 Nxf2 20. Kxf2 f4 21. Rf3 fxg3+ 22. hxg3 Rxf3+ 23. Kxf3 Qf8+ 24. Bf4 Bxb4 25. Kg2 Re8 26. Rf1 Qe7 27. Bxc7 Qe2+ 28. Rf2 Qe4+ 29. Qxe4 Rxe4 30. Be5 Re3 31. Rf3 Re2+ 32. Rf2 Re3 33. Rc2 Rxb3 34. Kh3 Ba5 35. Rc6 Bb6 36. Rc8+ Kf7 37. Rb8 Rxb2 38. a5 Bxd4 39. Rxb2 Bxb2 40. Bxb2 g5 41. Kg4 Kg6 42. Bd4 h5+ 43. Kf3 Kf5 44. Bb6 Ke5 45. Bd8 Kf5 46. Be7 g4+ 47. Ke3 Ke6 48. Bh4 Ke5 49. Bd8 1-0

[Event "45th FIDE Olympiad 2024"]
[Site "Budapest"]
[Date "2024.09.19"]
[Round "8.215"]
[White "Chipanga, Chiletso"]
[Black "Lee, Kyungseok"]
[Result "0-1"]
[WhiteElo "2089"]
[BlackElo "2044"]
[PlyCount "96"]
[EventDate "2024.09.05"]
[EventType "team-tourn"]
[EventCountry "HUN"]
[WhiteTeam "Malawi"]
[BlackTeam "South Korea"]
[WhiteTeamCountry "MWI"]
[TimeControl "40/5400+30:1800+30"]

1. e4 c5 2. Nf3 Nc6 3. d4 cxd4 4. Nxd4 e5 5. Nb5 d6 6. c4 g6 7. Be2 a6 8. N5a3 Nf6 9. Nc3 Bg7 10. Nc2 Be6 11. Be3 O-O 12. Qd2 Qc7 13. Rc1 Rac8 14. O-O Ne7 15. Na3 Qc6 16. f3 Nh5 17. Nd5 Rfe8 18. Rfd1 Nf4 19. Bf1 Rcd8 20. g3 Nh5 21. c5 Bxd5 22. exd5 Qd7 23. c6 bxc6 24. dxc6 Nxc6 25. Bxa6 d5 26. Bb5 Re6 27. Qc2 Rc8 28. Qa4 d4 29. Bf2 Nf6 30. Rc4 Bh6 31. f4 exf4 32. Rdxd4 Qe8 33. gxf4 Ng4 34. Rxc6 Rexc6 35. Bxc6 Rxc6 36. Re4 Qc8 37. Nc4 Bf8 38. b3 Nxf2 39. Kxf2 Ra6 40. Qb5 Rxa2+ 41. Kg3 Qd8 42. Ne3 Qd2 43. Ng4 h5 44. Nf6+ Kh8 45. Qf1 Qxh2+ 46. Kf3 Rb2 47. Re3 Qh4 48. Qa6 Qh1+ {0-} 0-1

[Event "45th FIDE Olympiad 2024"]
[Site "Budapest"]
[Date "2024.09.19"]
[Round "8.216"]
[White "Huh, Isaak"]
[Black "Mwale, George"]
[Result "1-0"]
[WhiteElo "2114"]
[BlackElo "2056"]
[PlyCount "93"]
[EventDate "2024.09.05"]
[EventType "team-tourn"]
[EventCountry "HUN"]
[WhiteTeam "South Korea"]
[BlackTeam "Malawi"]
[BlackTeamCountry "MWI"]
[TimeControl "40/5400+30:1800+30"]

1. e4 d5 2. exd5 Qxd5 3. Nc3 Qd8 4. d4 e6 5. Nf3 Nf6 6. Bc4 Be7 7. O-O O-O 8. Qe2 b6 9. Bg5 h6 10. Bxf6 Bxf6 11. Qe4 c6 12. Ne5 Bxe5 13. dxe5 Qe7 14. Bd3 g6 15. Qe3 Kg7 16. Ne4 Nd7 17. Nd6 Nc5 18. Be4 Nxe4 19. Qxe4 Bb7 20. Rad1 Rab8 21. c4 c5 22. Qe2 Bc6 23. f4 f5 24. exf6+ Qxf6 25. g3 Rbd8 26. Rfe1 Bd7 27. Nb7 Rf7 28. Nxd8 Qxd8 29. Qe5+ Qf6 30. Rd6 Qxe5 31. fxe5 Re7 32. Rf1 Be8 33. Rd8 Bf7 34. Rfd1 Be8 35. R1d6 Kf7 36. Rc8 h5 37. a3 g5 38. b4 cxb4 39. axb4 Kg6 40. Rdd8 Kf7 41. b5 Kf8 42. Kf2 Kf7 43. Ke3 Kf8 44. h4 g4 45. Rxe8+ Rxe8 46. Rxe8+ Kxe8 47. Kf4 1-0

[Event "45th FIDE Olympiad 2024"]
[Site "Budapest"]
[Date "2024.09.19"]
[Round "8.217"]
[White "Mehrad, Ahmad Tamim"]
[Black "Razanadrakotoarisoa, Toavina"]
[Result "0-1"]
[WhiteElo "2015"]
[BlackElo "2147"]
[PlyCount "98"]
[EventDate "2024.09.05"]
[EventType "team-tourn"]
[EventCountry "HUN"]
[WhiteTeam "Afghanistan"]
[BlackTeam "Madagascar"]
[WhiteTeamCountry "AFG"]
[BlackTeamCountry "MAD"]
[TimeControl "40/5400+30:1800+30"]

1. Nf3 Nf6 2. g3 d5 3. d4 e6 4. Bg2 Nbd7 5. O-O Be7 6. c3 O-O 7. Nbd2 b6 8. Ne5 Nxe5 9. dxe5 Nd7 10. f4 Ba6 11. Re1 c6 12. Nf3 Rc8 13. Be3 Bc5 14. Nd4 b5 15. Bf2 b4 16. Qd2 bxc3 17. Qxc3 Bb6 18. Qa3 Bb7 19. Rac1 a6 20. Red1 c5 21. Nf3 a5 22. b3 Rc7 23. Qb2 Qa8 24. h4 Rfc8 25. Nd2 Qa7 26. Nb1 c4 27. Bxb6 Qxb6+ 28. Kh2 Nc5 29. Qd4 cxb3 30. axb3 Qxb3 31. Nd2 Qb4 32. Qa1 a4 33. Rb1 Nb3 34. Nxb3 axb3 35. Rd4 Rc4 36. Rd3 Rc3 37. Rxc3 Rxc3 38. Qa7 Rc8 39. Rb2 h6 40. Bf3 Kh7 41. Qa1 Rc3 42. Qb1+ Kg8 43. f5 exf5 44. h5 f4 45. g4 Qb6 46. Kg2 Qe3 47. Qe1 Rc1 48. Qf2 Qc3 49. Qb6 Qe1 {0-} 0-1

[Event "45th FIDE Olympiad 2024"]
[Site "Budapest"]
[Date "2024.09.19"]
[Round "8.218"]
[White "Andrianiaina, Heritiana"]
[Black "Haidary, Hameedullah"]
[Result "0-1"]
[WhiteElo "2149"]
[BlackElo "2192"]
[PlyCount "120"]
[EventDate "2024.09.05"]
[EventType "team-tourn"]
[EventCountry "HUN"]
[WhiteTeam "Madagascar"]
[BlackTeam "Afghanistan"]
[WhiteTeamCountry "MAD"]
[BlackTeamCountry "AFG"]
[TimeControl "40/5400+30:1800+30"]

1. d4 Nf6 2. c4 g6 3. Nc3 Bg7 4. e4 d6 5. Nf3 b6 6. Be2 Bb7 7. Qc2 c5 8. d5 Nbd7 9. O-O O-O 10. Rd1 Ne5 11. Ne1 Ne8 12. f4 Nd7 13. Nf3 a6 14. a4 e6 15. dxe6 fxe6 16. e5 Qe7 17. Qd3 Rd8 18. exd6 Qf6 19. a5 Nb8 20. axb6 Rxd6 21. Qc2 Rxb6 22. Ra5 Rd6 23. Rxc5 Rxd1+ 24. Nxd1 Nc6 25. Be3 Nd6 26. Ne5 Nf5 27. Qc3 Qh4 28. Bf2 Qxf4 29. Nd3 Bxc3 30. Nxf4 Bb4 31. Nxe6 Bxc5 32. Nxc5 Nfd4 33. Bd3 Bc8 34. Be4 Re8 35. b4 Ne2+ 36. Kf1 Ncd4 37. Nc3 Nxc3 38. Bd3 Nc6 39. b5 axb5 40. cxb5 Ne5 41. Bc2 Nxb5 42. Ba4 Nd6 43. Bxe8 Nxe8 44. Bd4 Nc6 45. Ba1 Kf7 46. Kf2 Nf6 47. h3 Bf5 48. Ke3 Nd5+ 49. Kf3 Ncb4 50. g4 Bc2 51. Nd7 Nc6 52. h4 Ke7 53. Nc5 Bd1+ 54. Kg3 Nf6 55. g5 Nh5+ 56. Kh3 Bc2 57. Bc3 Kd6 58. Nb7+ Kd5 59. Na5 Nxa5 60. Bxa5 Ke4 {0-} 0-1